lending/lending_fUSD_20251218
["ID","MTS","AMOUNT","RATE_DAILY","PERIOD"]
[399062770,1766094632647,-862.02349704,0.00016444,2]
[399062771,1766094632657,-862.02349704,0.00016444,2]
[399062772,1766094632666,-862.02349704,0.00016444,2]
[399062773,1766094632679,-862.02349704,0.00016444,2]
[399062774,1766094632688,-862.02349704,0.00016444,2]
[399062775,1766094632698,-862.02349704,0.00016444,2]
[399062776,1766094632708,-874.87,0.00016444,2]
[399062777,1766094632718,-56647.64369584,0.00016445,2]
[399062778,1766094632732,-3576.84022002,0.00016445,2]
[399062779,1766094632744,-20736.0810649,0.00016445,2]
[399062780,1766094632755,-64995.13924778,0.00016445,2]
[399062781,1766094633547,-300.0,0.00016445,2]
[399062782,1766094635110,-300.0,0.00016445,2]
[399062786,1766094637682,-85921.99999894,0.00016445,2]
[399062787,1766094637858,-4219.49174464,0.00016445,2]
[399062788,1766094637870,-651302.80402788,0.00016445,2]
[399062789,1766094637880,-2500.0,0.00016454,2]
[399062790,1766094637890,-2187.10251359,0.00016454,2]
[399062791,1766094637900,-7024.38764974,0.00016454,2]
[399062792,1766094637909,-350.55048863,0.00016454,2]
[399062793,1766094637919,-300.0,0.00016454,2]
[399062795,1766094637928,-300.0,0.0001646,2]
[399062797,1766094637937,-214.0,0.00016473,2]
[399062799,1766094637947,-3191.33251353,0.00016504,2]
[399062801,1766094637957,-7024.38764972,0.00016504,2]
[399062803,1766094637966,-300.0,0.00016535,2]
[399062805,1766094637975,-166.66,0.00016543,2]
[399062807,1766094637985,-550.0,0.00016544,2]
[399062808,1766094637994,-200.0,0.00016545,2]
[399062810,1766094638004,-500.0,0.00016545,2]
[399062812,1766094638013,-500.0,0.00016545,2]
[399062814,1766094638023,-151.0,0.00016545,2]
[399062816,1766094638033,-500.0,0.00016545,2]
[399062818,1766094638043,-500.0,0.00016545,2]
[399062819,1766094638053,-500.0,0.00016545,2]
[399062821,1766094638063,-500.0,0.00016545,2]
[399062823,1766094638072,-250.0,0.00016545,2]
[399062825,1766094638082,-500.0,0.00016545,2]
[399062827,1766094638091,-250.0,0.00016545,2]
[399062829,1766094638100,-500.0,0.00016545,2]
[399062831,1766094638109,-500.0,0.00016545,2]
[399062833,1766094638119,-250.0,0.00016545,2]
[399062835,1766094638128,-500.0,0.00016545,2]
[399062836,1766094638138,-582.52208254,0.00016545,2]
[399062838,1766094638147,-500.0,0.00016545,2]
[399062840,1766094638156,-250.0,0.00016545,2]
[399062841,1766094638166,-500.0,0.00016545,2]
[399062842,1766094638176,-250.0,0.00016545,2]
[399062843,1766094638185,-250.0,0.00016545,2]
[399062844,1766094638195,-500.0,0.00016545,2]
[399062845,1766094638204,-500.0,0.00016545,2]
[399062846,1766094638214,-250.0,0.00016545,2]
[399062847,1766094638223,-250.0,0.00016545,2]
[399062848,1766094638232,-500.0,0.00016545,2]
[399062849,1766094638242,-250.0,0.00016545,2]
[399062850,1766094638251,-500.0,0.00016545,2]
[399062851,1766094638261,-250.0,0.00016545,2]
[399062852,1766094638271,-151.0,0.00016545,2]
[399062853,1766094638281,-250.0,0.00016545,2]
[399062854,1766094638290,-151.0,0.00016545,2]
[399062855,1766094638300,-151.0,0.00016545,2]
[399062856,1766094638309,-151.0,0.00016545,2]
[399062857,1766094638319,-151.0,0.00016545,2]
[399062858,1766094638329,-151.0,0.00016545,2]
[399062859,1766094638339,-151.0,0.00016545,2]
[399062860,1766094638349,-151.0,0.00016545,2]
[399062861,1766094638358,-500.0,0.00016545,2]
[399062862,1766094638368,-151.0,0.00016545,2]
[399062863,1766094638378,-500.0,0.00016545,2]
[399062864,1766094638388,-151.0,0.00016545,2]
[399062865,1766094638398,-500.0,0.00016545,2]
[399062866,1766094638407,-250.0,0.00016545,2]
[399062867,1766094638417,-500.0,0.00016545,2]
[399062868,1766094638428,-151.0,0.00016545,2]
[399062869,1766094638437,-250.0,0.00016545,2]
[399062870,1766094638447,-500.0,0.00016545,2]
[399062871,1766094638457,-151.0,0.00016545,2]
[399062872,1766094638467,-250.0,0.00016545,2]
[399062873,1766094638477,-151.0,0.00016545,2]
[399062874,1766094638487,-255.55242947,0.00016545,2]
[399062875,1766094638496,-500.0,0.00016545,2]
[399062876,1766094638506,-151.0,0.00016545,2]
[399062877,1766094638516,-500.0,0.00016545,2]
[399062878,1766094638526,-151.0,0.00016545,2]
[399062879,1766094638536,-500.0,0.00016545,2]
[399062880,1766094638546,-151.0,0.00016545,2]
[399062881,1766094638557,-579.4579192,0.00016545,2]
[399062882,1766094638567,-151.0,0.00016545,2]
[399062883,1766094638577,-500.0,0.00016545,2]
[399062884,1766094638587,-151.0,0.00016545,2]
[399062885,1766094638597,-500.0,0.00016545,2]
[399062886,1766094638610,-151.0,0.00016545,2]
[399062887,1766094638620,-500.0,0.00016545,2]
[399062888,1766094638629,-151.0,0.00016545,2]
[399062889,1766094638639,-209.40437684,0.00016545,2]
[399062890,1766094638649,-500.0,0.00016545,2]
[399062891,1766094638658,-500.0,0.00016545,2]
[399062892,1766094638668,-500.0,0.00016545,2]
[399062893,1766094638677,-500.0,0.00016545,2]
[399062894,1766094638689,-500.0,0.00016545,2]
[399062895,1766094638698,-500.0,0.00016545,2]
[399062896,1766094638708,-500.0,0.00016545,2]
[399062897,1766094638718,-500.0,0.00016545,2]
[399062898,1766094638728,-500.0,0.00016545,2]
[399062899,1766094638738,-500.0,0.00016545,2]
[399062900,1766094638748,-500.0,0.00016545,2]
[399062901,1766094638758,-500.0,0.00016545,2]
[399062902,1766094638768,-500.0,0.00016545,2]
[399062903,1766094638777,-151.0,0.00016545,2]
[399062904,1766094638787,-200.0,0.00016545,2]
[399062905,1766094638797,-500.0,0.00016545,2]
[399062906,1766094638807,-500.0,0.00016545,2]
[399062907,1766094638817,-151.0,0.00016545,2]
[399062908,1766094638826,-500.0,0.00016545,2]
[399062909,1766094638836,-151.0,0.00016545,2]
[399062910,1766094638846,-500.0,0.00016545,2]
[399062911,1766094638856,-151.0,0.00016545,2]
[399062912,1766094638865,-500.0,0.00016545,2]
[399062913,1766094638875,-151.0,0.00016545,2]
[399062914,1766094638885,-500.0,0.00016545,2]
[399062915,1766094638895,-151.0,0.00016545,2]
[399062916,1766094638905,-151.0,0.00016545,2]
[399062917,1766094638915,-151.0,0.00016545,2]
[399062918,1766094638925,-151.0,0.00016545,2]
[399062919,1766094638935,-151.0,0.00016545,2]
[399062920,1766094638944,-151.0,0.00016545,2]
[399062921,1766094638955,-250.0,0.00016545,2]
[399062922,1766094638965,-250.0,0.00016545,2]
[399062923,1766094638975,-250.0,0.00016545,2]
[399062924,1766094638986,-574.12855637,0.00016545,2]
[399062925,1766094638995,-250.0,0.00016545,2]
[399062926,1766094639005,-250.0,0.00016545,2]
[399062927,1766094639014,-250.0,0.00016545,2]
[399062928,1766094639024,-250.0,0.00016545,2]
[399062929,1766094639034,-250.0,0.00016545,2]
[399062930,1766094639044,-500.0,0.00016545,2]
[399062931,1766094639054,-250.0,0.00016545,2]
[399062932,1766094639064,-500.0,0.00016545,2]
[399062933,1766094639074,-250.0,0.00016545,2]
[399062934,1766094639084,-500.0,0.00016545,2]
[399062935,1766094639094,-250.0,0.00016545,2]
[399062936,1766094639103,-500.0,0.00016545,2]
[399062937,1766094639112,-500.0,0.00016545,2]
[399062938,1766094639122,-500.0,0.00016545,2]
[399062939,1766094639131,-500.0,0.00016545,2]
[399062940,1766094639140,-500.0,0.00016545,2]
[399062941,1766094639149,-500.0,0.00016545,2]
[399062942,1766094639159,-500.0,0.00016545,2]
[399062943,1766094639168,-200.0,0.00016545,2]
[399062944,1766094639178,-500.0,0.00016545,2]
[399062945,1766094639187,-582.9934841,0.00016545,2]
[399062946,1766094639196,-1000.0,0.00016553,2]
[399062947,1766094639207,-999.99,0.00016553,2]
[399062948,1766094639216,-13927.33,0.00016553,2]
[399062949,1766094639226,-499.99,0.00016553,2]
[399062950,1766094639235,-4999.99,0.00016553,2]
[399062951,1766094639245,-1599.53,0.00016553,2]
[399062952,1766094639254,-150.99,0.00016553,2]
[399062953,1766094639264,-500.0,0.00016553,2]
[399062954,1766094639274,-500.0,0.00016553,2]
[399062955,1766094639283,-500.0,0.00016553,2]
[399062956,1766094639293,-500.0,0.00016553,2]
[399062957,1766094639303,-500.0,0.00016553,2]
[399062958,1766094639312,-500.0,0.00016553,2]
[399062959,1766094639322,-3191.33251353,0.00016553,2]
[399062960,1766094639332,-7024.38764972,0.00016553,2]
[399062961,1766094639341,-178.919,0.00016554,2]
[399062962,1766094639351,-1175.27,0.00016554,2]
[399062963,1766094639360,-9999.99,0.00016554,2]
[399062964,1766094639370,-5428.86,0.00016554,2]
[399062965,1766094639379,-150.99,0.00016554,2]
[399062966,1766094639389,-3676.63,0.00016554,2]
[399062967,1766094639399,-299.99,0.00016554,4]
[399062968,1766094639408,-9999.99,0.00016554,2]
[399062969,1766094639418,-61476.66,0.00016554,2]
[399062970,1766094639428,-308.94,0.00016554,2]
[399062971,1766094639437,-2356.92,0.00016554,2]
[399062972,1766094639446,-9999.99,0.00016554,2]
[399062973,1766094639456,-173771.28,0.00016554,2]
[399062974,1766094639465,-1194.78694617,0.00016554,5]
[399062975,1766094639475,-1194.78694617,0.00016554,5]
[399062976,1766094639484,-500.0,0.00016554,2]
[399062978,1766094639493,-500.0,0.00016554,2]
[399062979,1766094639502,-512.2631711,0.00016554,2]
[399062980,1766094639512,-183.31760521,0.00016554,5]
[399062981,1766094639522,-466.20015622,0.00016554,2]
[399062982,1766094639531,-1801.821,0.00016554,2]
[399062983,1766094639541,-500.0,0.00016554,2]
[399062984,1766094639550,-500.0,0.00016554,2]
[399062985,1766094639560,-500.0,0.00016554,2]
[399062986,1766094639570,-500.0,0.00016554,2]
[399062987,1766094639580,-500.0,0.00016554,2]
[399062988,1766094639589,-500.0,0.00016554,2]
[399062989,1766094639599,-500.0,0.00016554,2]
[399062990,1766094639612,-500.0,0.00016554,2]
[399062991,1766094639621,-500.0,0.00016554,2]
[399062992,1766094639630,-500.0,0.00016554,2]
[399062993,1766094639639,-500.0,0.00016554,2]
[399062994,1766094639649,-171.44,0.00016554,2]
[399062995,1766094639658,-1000.0,0.00016565,2]
[399062996,1766094639668,-3191.33251353,0.00016603,2]
[399062997,1766094639679,-7024.38764972,0.00016603,2]
[399062998,1766094639688,-3191.33251353,0.00016652,2]
[399062999,1766094639697,-7024.38764972,0.00016652,2]
[399063000,1766094639706,-295.07033905,0.0001666,2]
[399063001,1766094639719,-500.0,0.00016664,2]
[399063002,1766094639728,-500.0,0.00016664,2]
[399063003,1766094639737,-500.0,0.00016664,2]
[399063004,1766094639747,-500.0,0.00016664,2]
[399063005,1766094639756,-500.0,0.00016664,2]
[399063006,1766094639765,-500.0,0.00016664,2]
[399063007,1766094639773,-500.0,0.00016664,2]
[399063008,1766094639782,-500.0,0.00016664,2]
[399063009,1766094639792,-500.0,0.00016664,2]
[399063010,1766094639800,-500.0,0.00016664,2]
[399063011,1766094639810,-500.0,0.00016664,2]
[399063012,1766094639819,-489.413,0.00016664,2]
[399063013,1766094639829,-500.0,0.00016664,2]
[399063014,1766094639838,-500.0,0.00016664,2]
[399063015,1766094639847,-500.0,0.00016664,2]
[399063016,1766094639856,-500.0,0.00016664,2]
[399063017,1766094639865,-504.44339488,0.00016664,2]
[399063018,1766094639874,-500.0,0.00016664,2]
[399063019,1766094639883,-285.20294484,0.00016664,2]
[399063020,1766094639892,-500.0,0.00016664,2]
[399063021,1766094639901,-500.0,0.00016664,2]
[399063022,1766094639910,-500.0,0.00016664,2]
[399063023,1766094639919,-500.0,0.00016664,2]
[399063024,1766094639928,-1000.0,0.000167,2]
[399063025,1766094639937,-340.0,0.000167,2]
[399063026,1766094639947,-3191.33251353,0.00016702,2]
[399063027,1766094639956,-7024.38764972,0.00016702,2]
[399063028,1766094639965,-723.0,0.00016709,2]
[399063029,1766094639975,-166.21,0.00016712,2]
[399063030,1766094639984,-874.87,0.00016718,2]
[399063031,1766094639992,-1115.0,0.00016721,2]
[399063032,1766094640002,-339.0,0.00016726,2]
[399063033,1766094640011,-197.0,0.00016734,2]
[399063034,1766094640020,-340.0,0.00016737,2]
[399063035,1766094640029,-167.0,0.00016743,2]
[399063037,1766094640038,-3191.33251353,0.00016751,2]
[399063038,1766094640048,-7024.38764972,0.00016751,2]
[399063040,1766094640057,-375.0,0.00016753,2]
[399063065,1766094640464,-329.0,0.00016755,2]
[399063067,1766094640475,-344.0,0.00016771,2]
[399063069,1766094640484,-1614.0,0.00016787,2]
[399063071,1766094640493,-1682.0,0.00016788,2]
[399063073,1766094640502,-3191.33251353,0.00016801,2]
[399063075,1766094640512,-7024.38764972,0.00016801,2]
[399063077,1766094640521,-543.0,0.0001682,2]
[399063078,1766094640531,-752.0,0.00016822,2]
[399063079,1766094640540,-3191.33251353,0.0001685,2]
[399063080,1766094640579,-7024.38764972,0.0001685,2]
[399063081,1766094640589,-1332.0,0.00016854,2]
[399063082,1766094640599,-1871.0,0.00016855,2]
[399063083,1766094640611,-200.0,0.00016863,2]
[399063084,1766094640620,-200.0,0.00016864,2]
[399063085,1766094640630,-166.66,0.00016871,2]
[399063086,1766094640639,-1714.0,0.00016887,2]
[399063087,1766094640649,-3191.33251353,0.000169,2]
[399063088,1766094640660,-7024.38764972,0.000169,2]
[399063089,1766094640669,-546.22310036,0.000169,2]
[399063090,1766094640678,-500.0,0.000169,2]
[399063091,1766094640689,-500.0,0.000169,2]
[399063092,1766094640698,-500.0,0.000169,2]
[399063093,1766094640708,-500.0,0.000169,2]
[399063094,1766094640717,-500.0,0.000169,2]
[399063095,1766094640726,-500.0,0.000169,2]
[399063096,1766094640735,-500.0,0.000169,2]
[399063097,1766094640745,-500.0,0.000169,2]
[399063098,1766094640754,-500.0,0.000169,2]
[399063099,1766094640763,-4193.0,0.000169,2]
[399063100,1766094640772,-491.0,0.00016906,2]
[399063101,1766094640781,-874.87,0.00016992,2]
[399063102,1766094640790,-9406.6434563,0.00016994,2]
[399063103,1766094640800,-64327.2201964,0.00016998,2]
[399063104,1766094640809,-25846.031808,0.00016998,2]
[399063105,1766094640820,-8149.3631978,0.00016998,2]
[399063106,1766094640829,-1194.78694617,0.00016999,5]
[399063107,1766094640839,-300.0,0.00016999,2]
[399063108,1766094640847,-666.0,0.00016999,2]
[399063109,1766094640856,-500.0,0.00016999,2]
[399063110,1766094640865,-319.80901897,0.00016999,2]
[399063111,1766094640874,-666.0,0.00016999,2]
[399063112,1766094640884,-666.0,0.00016999,2]
[399063113,1766094640893,-300.0,0.00016999,2]
[399063114,1766094640902,-666.0,0.00016999,2]
[399063115,1766094640911,-300.0,0.00016999,2]
[399063116,1766094640920,-666.0,0.00016999,2]
[399063117,1766094640929,-300.0,0.00016999,2]
[399063118,1766094640940,-2000.0,0.00016999,2]
[399063119,1766094640950,-2000.0,0.00016999,2]
[399063120,1766094640959,-2000.0,0.00016999,2]
[399063121,1766094640969,-2000.0,0.00016999,2]
[399063122,1766094640979,-2000.0,0.00016999,2]
[399063123,1766094640988,-2000.0,0.00016999,2]
[399063124,1766094640998,-2000.0,0.00016999,2]
[399063125,1766094641008,-2000.0,0.00016999,2]
[399063126,1766094641018,-499.87696968,0.00016999,2]
[399063127,1766094641027,-1888150.14730093,0.00017,2]
[399063128,1766094641107,-908.95559459,0.00017,2]
[399063129,1766094641132,-858.64,0.00017,2]
[399063130,1766094641457,-1.7e-07,0.00017,2]
[399063131,1766094641469,-314.456596,0.00017,2]
[399063144,1766094645758,-170.83,0.0001677,2]
[399063145,1766094645768,-459.3103466,0.000169,2]
[399063146,1766094645778,-1158.23577005,0.00017,2]
[399063147,1766094645790,-9268.94033517,0.00017,2]
[399063148,1766094645808,-83355.74826646,0.00017,2]
[399063156,1766094648066,-25386.44237143,0.00017,2]
[399063157,1766094648081,-692.1222796,0.00017,2]
[399063158,1766094665541,-300.0,0.00016444,2]
[399063159,1766094665564,-1.01270265,0.00016444,2]
[399063160,1766094694068,1801.821,0.00016116,2]
[399063161,1766094694240,178.919,0.00016116,2]
[399063162,1766094695282,-323.07491363,0.00016444,2]
[399063163,1766094697336,-176.92508637,0.00016444,2]
[399063164,1766094697367,-323.07491363,0.00016444,2]
[399063165,1766094700636,-176.92508637,0.00016444,2]
[399063166,1766094700668,-159.83945272,0.00016444,2]
[399063167,1766094702649,-163.23546091,0.00016444,2]
[399063168,1766094706066,-176.92508637,0.00016444,2]
[399063169,1766094706094,-64.89593747,0.00016444,2]
[399063170,1766094708802,-329.24693285,0.00016444,2]
[399063171,1766094711265,-105.85712968,0.00016444,2]
[399063172,1766094711301,-99.57377013,0.00016444,2]
[399063173,1766094714456,-300.0,0.00016444,2]
[399063174,1766094717456,-100.42622987,0.00016444,2]
[399063175,1766094717490,-199.57377013,0.00016444,2]
[399063176,1766094719411,-195.0,0.00016444,2]
[399063177,1766094720924,-105.42622987,0.00016444,2]
[399063178,1766094720953,-59.40377013,0.00016444,2]
[399063179,1766094723031,-300.0,0.00016444,2]
[399063180,1766094724596,-140.59622987,0.00016444,2]
[399063181,1766094724626,-159.40377013,0.00016444,2]
[399063182,1766094729314,-100.00984725,0.00016444,2]
[399063183,1766094729340,-453.66004843,0.00016444,2]
[399063184,1766094732782,-222.30820943,0.00016354,2]
[399063185,1766094734310,-459.1266799,0.00016354,2]
[399063186,1766094736351,-318.56511067,0.00016354,2]
[399063187,1766094738916,-174.41561963,0.00016354,2]
[399063188,1766094742131,-165.46809654,0.00016354,2]
[399063189,1766094743632,-500.0,0.00016354,2]
[399063190,1766094745762,-185.97256245,0.00016354,2]
[399063191,1766094747307,-195.0,0.00016354,2]
[399063192,1766094749081,-500.0,0.00016354,2]
[399063193,1766094752159,-300.0,0.00016354,2]
[399063194,1766094752230,-4815.54569861,0.00016354,2]
[399063195,1766094752293,-368.91860278,0.00016354,2]
[399063196,1766094752690,500.0,0.00016355,2]
[399063197,1766094753206,-46.33995157,0.00016444,2]
[399063198,1766094753236,-153.66004843,0.00016444,2]
[399063199,1766094755508,-390.62151196,0.00016444,2]
[399063200,1766094755534,-85.712782,0.00016444,2]
[399063201,1766094770513,-420.05109312,0.00016444,2]
[399063202,1766094772539,-79.94890688,0.00016444,2]
[399063203,1766094772563,-79.27451535,0.00016444,2]
[399063204,1766094772586,-118.60021274,0.00016444,2]
[399063205,1766094775228,350.55048863,0.00016354,2]
[399063206,1766094775267,-370.05109312,0.00016444,2]
[399063207,1766094780080,-11.34869414,0.00016444,2]
[399063208,1766094780103,-200.92985713,0.00016444,2]
[399063209,1766094782143,-299.07014287,0.00016444,2]
[399063210,1766094782170,-124.77057792,0.00016444,2]
[399063211,1766094782982,150.50635141,0.00016354,2]
[399063212,1766094784909,179.89894701,0.00016354,2]
[399063213,1766094786497,-209.89781376,0.00016444,2]
[399063214,1766094788876,-200.0,0.00016444,2]
[399063215,1766094790300,-90.10218624,0.00016444,2]
[399063216,1766094790327,-87.7284071,0.00016444,2]
[399063217,1766094793169,-403.61461292,0.00016444,2]
[399063218,1766094794734,-8.65697998,0.00016444,2]
[399063219,1766094794763,-219.10686497,0.00016444,2]
[399063220,1766094798072,-184.279599,0.00016444,2]
[399063221,1766094798101,-257.71568866,0.00016444,2]
[399063222,1766094800241,-242.28431134,0.00016444,2]
[399063223,1766094800267,-24.31849201,0.00016444,2]
[399063224,1766094803510,-475.68150799,0.00016444,2]
[399063225,1766094803538,-24.31849201,0.00016444,2]
[399063226,1766094806255,-519.96306838,0.00016444,2]
[399063227,1766094806279,-195.0,0.00016444,2]
[399063228,1766094806303,-375.22942208,0.00016444,2]
[399063229,1766094806329,-500.0,0.00016444,2]
[399063230,1766094806350,-50.26961493,0.00016444,2]
[399063231,1766094809403,-144.73038507,0.00016444,2]
[399063232,1766094809432,-355.26961493,0.00016445,2]
[399063233,1766094810001,503.7,0.00016093,2]
[399063234,1766094812563,-500.0,0.00016445,2]
[399063235,1766094814081,-191.52269656,0.00016445,2]
[399063236,1766094816150,-325.0,0.00016445,2]
[399063237,1766094817658,-194.25347522,0.00016445,2]
[399063238,1766094819201,-500.0,0.00016445,2]
[399063239,1766094820903,-323.11864538,0.00016444,2]
[399063240,1766094822602,-176.88135462,0.00016444,2]
[399063241,1766094822631,-2.91532201,0.00016444,2]
[399063242,1766094825295,-336.12,0.00016444,2]
[399063243,1766094827396,-205.24623837,0.00016444,2]
[399063244,1766094827423,-140.84511625,0.00016445,2]
[399063245,1766094829564,-452.14387181,0.00016445,2]
[399063246,1766094832430,-388.6272621,0.00016445,2]
[399063247,1766094833637,-155.148762,0.00016445,2]
[399063248,1766094835419,4974.51933999,0.00016354,2]
[399063249,1766094836973,-326.97172114,0.00016396,2]
[399063250,1766094839043,-188.77248995,0.00016396,2]
[399063251,1766094840560,-230.46289876,0.00016396,2]
[399063252,1766094843970,-177.50363396,0.00016395,2]
[399063253,1766094845564,-152.281238,0.00016395,2]
[399063254,1766094849117,-210.35864538,0.00016395,2]
[399063255,1766094850720,-9.85648266,0.00016395,2]
[399063256,1766094850745,-190.14351734,0.00016396,2]
[399063257,1766094855143,-4.85648266,0.00016396,2]
[399063258,1766094855166,-206.71610996,0.00016396,2]
[399063259,1766094857351,-269.2286201,0.00016396,2]
[399063260,1766094859269,-219.2286201,0.00016396,2]
[399063261,1766094861805,-305.06397369,0.00016396,2]
[399063262,1766094865129,-300.66941487,0.00016396,2]
[399063263,1766094866697,-216.43709006,0.00016396,2]
[399063264,1766094871191,-315.48056805,0.00016396,2]
[399063265,1766094873641,-152.35,0.00016396,2]
[399063266,1766094875162,-500.0,0.00016396,2]
[399063267,1766094878276,-611.648148,0.00016396,2]
[399063268,1766094881443,-354.00231761,0.00016396,2]
[399063269,1766094883973,-210.0,0.00016396,2]
[399063270,1766094886168,-242.68829309,0.00016396,2]
[399063271,1766094889232,-282.81163508,0.00016396,2]
[399063272,1766094893571,-327.88135462,0.00016396,2]
[399063273,1766094895648,-161.89812619,0.00016396,2]
[399063274,1766094897204,200.0,0.00015997,2]
[399063275,1766094897770,-468.61825624,0.00016396,2]
[399063276,1766094900905,-190.00867295,0.00016396,2]
[399063277,1766094901967,-227.0,0.00016395,2]
[399063278,1766094904647,-73.0,0.00016395,2]
[399063279,1766094904674,-248.04495343,0.00016395,2]
[399063280,1766094907838,-172.88629363,0.00016395,2]
[399063281,1766094909369,-244.31269064,0.00016395,2]
[399063282,1766094912201,-534.7560623,0.00016395,2]
[399063283,1766094912226,-16.69661382,0.00016395,2]
[399063284,1766094913271,-188.72027808,0.00016395,2]
[399063285,1766094916771,-94.5831081,0.00016395,2]
[399063286,1766094916797,-294.84684476,0.00016396,2]
[399063287,1766094919416,-195.0,0.00016396,2]
[399063288,1766094923275,-221.61843486,0.00016396,2]
[399063289,1766094924609,-193.51028781,0.00016396,2]
[399063290,1766094926067,150.50635141,0.00016345,2]
[399063291,1766094926150,-167.67192095,0.00016396,2]
[399063292,1766094929297,-232.89331411,0.00016396,2]
[399063293,1766094936168,-167.05141096,0.00016396,2]
[399063294,1766094938228,-152.83,0.00016396,2]
[399063295,1766094940437,-383.97706952,0.00016396,2]
[399063296,1766094942104,-327.67549313,0.00016396,2]
[399063297,1766094943597,-270.12003313,0.00016396,2]
[399063298,1766094947043,-181.13464512,0.00016396,2]
[399063299,1766094948987,-214.92890164,0.00016396,2]
[399063300,1766094950050,-754.35296954,0.00016396,2]
[399063301,1766094952582,-216.93305501,0.00016396,2]
[399063302,1766094962477,-403.57457059,0.00016396,2]
[399063303,1766094964608,-179.98045227,0.00016396,2]
[399063306,1766094967158,-250.99847565,0.00016396,2]
[399063307,1766094968293,507.41196162,0.00016338,2]
[399063308,1766094969697,-477.92416782,0.00016396,2]
[399063309,1766094971306,-189.02492322,0.00016396,2]
[399063310,1766094973417,-300.0,0.00016396,2]
[399063311,1766094974948,-265.92982465,0.00016396,2]
[399063312,1766094976578,-216.80907043,0.00016396,2]
[399063323,1766094981560,-243.29042024,0.00016396,2]
[399063324,1766094984153,-291.59009209,0.00016396,2]
[399063325,1766094986332,-259.28982065,0.00016396,2]
[399063326,1766094988884,-157.27324452,0.00016396,2]
[399063327,1766094992588,237.031784,0.00016313,2]
[399063328,1766094992718,1508.04757037,0.00016345,2]
[399063329,1766094992744,991.95242963,0.00016345,2]
[399063330,1766094993355,-211.80376312,0.00016396,2]
[399063331,1766094995035,-310.19170455,0.00016396,2]
[399063332,1766094995913,153.77,7.934e-05,2]
[399063333,1766094996196,153.77,9.256e-05,2]
[399063334,1766094996408,153.77,0.00010578,2]
[399063335,1766094996609,153.77,0.00011901,2]
[399063336,1766094996926,153.77,0.00013223,2]
[399063337,1766094997116,153.77,0.00014545,2]
[399063338,1766094997314,153.77,0.00015868,2]
[399063339,1766094998244,-200.6751352,0.00016396,2]
[399063340,1766095000427,-154.22604213,0.00016396,2]
[399063341,1766095004345,-250.67322145,0.00016396,2]
[399063342,1766095005448,-220.57096505,0.00016396,2]
[399063343,1766095007044,-300.0,0.00016396,2]
[399063344,1766095022872,-213.49946989,0.00016395,2]
[399063351,1766095040343,-133.50053011,0.00016395,2]
[399063352,1766095040375,-300.0,0.00016395,2]
[399063353,1766095040607,-250.0,0.00016396,2]
[399063354,1766095040806,-6696.9722394,0.00016396,2]
[399063355,1766095040842,-10000.01,0.00016396,2]
[399063356,1766095041006,-10000.01,0.00016396,2]
[399063357,1766095041808,-10000.01,0.00016396,2]
[399063358,1766095041828,-10000.01,0.00016396,2]
[399063359,1766095041848,-10000.01,0.00016396,2]
[399063360,1766095041868,-10000.01,0.00016396,2]
[399063361,1766095041890,-2745.44531677,0.00016396,2]
[399063362,1766095041901,-250.0,0.00016417,2]
[399063363,1766095041910,-300.0,0.00016417,2]
[399063364,1766095041920,-300.0,0.00016435,2]